bitfinex/quotes_ETHUSD_20251028
["timestamp","ask_amount","ask_price","bid_price","bid_amount"]
[1761612558477,2.43398752,4110.2,4109.9,0.1216]
[1761612559499,0.001,4110.2,4109.9,0.1216]
[1761612560895,2.4339767,4110.2,4109.9,0.1216]
[1761612561464,0.001,4110.2,4109.9,0.1216]
[1761612563796,2.43397991,4110.2,4109.9,0.1216]
[1761612564499,0.001,4110.2,4109.9,0.1216]
[1761612567884,2.43399485,4110.2,4109.9,0.1216]
[1761612568873,2.43303766,4110.1,4109.9,0.1216]
[1761612569574,2.43399114,4110.2,4109.9,0.1216]
[1761612570000,0.001,4110.2,4109.9,0.1216]
[1761612570205,3.4069829,4110.2,4109.9,0.1216]
[1761612570507,0.974,4110.2,4109.9,0.1216]
[1761612571597,0.001,4110.2,4110.1,0.1216]
[1761612571797,0.001,4110.2,4110.1,2.55463082]
[1761612572012,0.001,4110.2,4110.1,0.1216]
[1761612572306,0.001,4110.2,4110.1,2.55463082]
[1761612575413,0.001,4110.2,4110.1,0.1216]
[1761612575909,2.43397163,4110.2,4110.1,0.1216]
[1761612576112,0.001,4110.2,4110.1,0.1216]
[1761612576500,2.43397163,4110.2,4110.1,0.1216]
[1761612576877,2.43397163,4110.2,4109.8,0.002]
[1761612576878,3.98829002,4110.0,4109.8,0.002]
[1761612577077,9.96354161,4109.9,4109.8,0.002]
[1761612577380,10.43004161,4109.9,4109.8,0.002]
[1761612577707,6.16608966,4109.9,4109.8,0.002]
[1761612578420,2.07944044,4109.9,4109.8,0.002]
[1761612578618,2.5282,4109.9,4109.8,0.002]
[1761612579420,0.973,4109.9,4109.8,0.002]
[1761612579706,0.001,4110.2,4109.8,0.002]
[1761612579966,0.001,4110.2,4109.8,0.48906146]
[1761612580078,0.001,4110.2,4109.8,0.002]
[1761612580729,0.001,4110.2,4109.8,2.43519213]
[1761612581525,0.001,4110.2,4109.8,0.002]
[1761612581689,0.001,4110.2,4110.0,2.43303523]
[1761612581894,0.001,4110.2,4109.8,0.002]
[1761612582496,0.001,4110.2,4110.0,2.43304203]
[1761612582698,0.001,4110.2,4110.0,2.91986652]
[1761612583285,0.001,4110.2,4110.1,2.43303082]
[1761612583911,0.001,4110.2,4110.0,0.48682449]
[1761612583912,0.001,4110.2,4110.0,2.91990346]
[1761612584312,0.001,4110.2,4110.1,2.43303082]
[1761612586889,0.001,4110.2,4110.1,2.55463082]
[1761612587126,0.001,4110.2,4110.1,3.10229122]
[1761612588612,0.001,4110.2,4110.1,0.6692604]
[1761612588811,0.001,4110.2,4110.1,2.55463082]
[1761612589905,0.001,4110.2,4110.1,2.55663082]
[1761612595245,0.001,4110.2,4110.1,0.1236]
[1761612600406,0.4675,4110.2,4110.1,0.1236]
[1761612600807,2.43397163,4110.2,4110.1,0.1236]
[1761612601033,0.4675,4110.2,4110.1,0.1236]
[1761612601405,3.87347163,4110.2,4110.1,0.1236]
[1761612601610,1.4405,4110.2,4110.1,0.1236]
[1761612602241,3.87347163,4110.2,4110.1,0.1236]
[1761612602544,5.42867163,4110.2,4110.1,0.1236]
[1761612604943,5.42867163,4110.2,4110.1,0.002]
[1761612605154,6.07453918,4110.2,4110.1,0.002]
[1761612605859,6.72987364,4110.2,4110.1,0.002]
[1761612606018,6.07453918,4110.2,4110.1,0.002]
[1761612607354,5.55027163,4110.2,4110.1,0.002]
[1761612607527,6.07448562,4110.2,4110.1,0.002]
[1761612608460,0.52521399,4110.2,4110.1,0.002]
[1761612608672,0.001,4110.2,4110.1,0.002]
[1761612609133,0.001,4110.2,4110.1,2.81249917]
[1761612609939,0.001,4110.2,4110.1,0.37946835]
[1761612610556,0.001,4110.2,4110.1,0.1236]
[1761612612327,0.001,4110.2,4110.1,2.55663082]
[1761612612961,0.001,4110.2,4110.1,0.1236]
[1761612616436,0.001,4110.2,4110.1,2.55663082]
[1761612623876,0.001,4110.7,4110.3,0.405504]
[1761612624174,0.001,4110.7,4110.6,6.69403547]
[1761612626771,0.001,4110.7,4110.6,2.43273488]
[1761612629281,0.001,4110.7,4110.4,0.55433099]
[1761612629448,0.4461,4110.7,4110.4,2.43281451]
[1761612629649,0.4461,4110.7,4110.2,2.43291765]
[1761612629851,0.4461,4110.7,4109.9,2.43309602]
[1761612630046,0.4461,4110.7,4110.0,2.43308307]
[1761612630269,0.001,4110.7,4110.1,4.26330059]
[1761612630475,0.001,4110.7,4110.3,2.43286477]
[1761612630669,0.001,4110.7,4110.6,2.43273488]
[1761612631195,0.001,4110.7,4110.4,0.66961654]
[1761612631955,0.4451,4110.6,4110.3,2.43289723]
[1761612632153,0.001,4110.7,4110.3,2.43289723]
[1761612632354,0.4461,4110.7,4110.3,2.43289723]
[1761612632990,0.4461,4110.7,4110.4,2.4328455]
[1761612633479,0.4461,4110.7,4110.5,2.43278906]
[1761612633783,0.4461,4110.7,4110.6,0.1216]
[1761612634181,2.8787757,4110.7,4110.6,0.1216]
[1761612635583,1.5552,4110.6,4110.1,0.002]
[1761612635776,2.43297163,4110.2,4110.1,0.002]
[1761612636092,2.43297163,4110.2,4110.1,0.1236]
[1761612636400,4.42737163,4110.2,4110.1,0.002]
[1761612636694,4.83287563,4110.2,4110.1,0.002]
[1761612636992,4.83287563,4110.2,4109.8,0.002]
[1761612636993,4.39385322,4109.9,4109.8,0.002]
[1761612637196,2.43326763,4109.7,4109.6,0.002]
[1761612637403,2.87246763,4109.7,4109.6,0.002]
[1761612637762,0.219,4109.9,4109.6,0.002]
[1761612638067,0.65531377,4110.5,4109.6,0.1236]
[1761612638068,0.973,4110.1,4109.6,0.1236]
[1761612638691,0.4392,4110.0,4109.9,0.1216]
[1761612639263,0.973,4110.1,4109.9,0.1216]
[1761612639484,0.001,4110.7,4110.0,0.1216]
[1761612639668,0.001,4110.7,4110.1,0.0243303]
[1761612639867,0.001,4110.7,4110.6,2.55433488]
[1761612640177,0.001,4110.7,4110.6,0.1216]
[1761612641693,0.001,4110.7,4110.6,2.55433488]
[1761612641904,0.001,4110.7,4110.6,0.1216]
[1761612642805,0.4402,4110.7,4110.6,0.1216]
[1761612643009,2.8728757,4110.7,4110.6,0.1216]
[1761612643193,4.4280757,4110.7,4110.6,0.1216]
[1761612646767,2.43303429,4110.1,4109.8,0.002]
[1761612647114,1.7742,4109.9,4109.8,0.1236]
[1761612647324,4.20734922,4109.9,4109.8,0.1236]
[1761612647475,4.64654922,4109.9,4109.8,0.1236]
[1761612648014,0.4392,4110.3,4109.8,0.1236]
[1761612648217,1.4122,4110.3,4109.8,0.1236]
[1761612648722,0.5608,4110.6,4109.8,0.37948606]
[1761612648870,0.973,4110.5,4110.2,0.1216]
[1761612649511,1.4122,4110.5,4110.2,0.1216]
[1761612649914,1.4122,4110.5,4110.2,2.55457048]
[1761612650119,0.973,4110.5,4110.2,0.1216]
[1761612650489,0.4392,4110.4,4110.2,0.1216]
[1761612651279,0.973,4110.5,4110.2,0.1216]
[1761612651475,0.4392,4110.4,4110.2,0.1216]
[1761612654207,0.001,4110.7,4110.2,0.1216]
[1761612654408,0.001,4110.7,4110.3,0.004]
[1761612654594,0.001,4110.7,4110.6,0.1216]
[1761612654921,0.001,4110.7,4110.6,2.55433488]
[1761612655088,0.001,4110.7,4110.6,2.55833488]
[1761612658304,0.001,4110.7,4110.6,2.55433488]
[1761612658510,0.001,4110.7,4110.6,3.05305369]
[1761612658713,0.001,4110.7,4110.6,3.05705369]
[1761612662114,0.001,4110.7,4110.6,7.22095769]
[1761612662291,0.001,4110.7,4110.6,6.93705369]
[1761612662491,0.001,4110.7,4110.6,7.91005369]
[1761612665735,0.001,4110.7,4110.6,3.05705369]
[1761612666025,0.001,4110.7,4110.6,18.97054884]
[1761612666227,0.001,4110.7,4110.6,18.9462215]
[1761612669424,0.001,4110.7,4110.6,22.8262215]
[1761612673026,0.001,4110.7,4110.6,22.8222215]
[1761612673430,0.001,4110.7,4110.6,22.8262215]
[1761612675536,0.001,4110.7,4110.6,6.93305369]
[1761612675740,0.001,4110.7,4109.6,6.372]
[1761612675741,0.464,4110.7,4109.6,0.002]
[1761612675938,0.464,4110.7,4110.6,2.43273488]
[1761612676310,0.464,4110.7,4110.4,2.43285325]
[1761612676505,0.464,4110.7,4109.9,2.43314922]
[1761612676705,0.464,4110.7,4110.6,2.43273488]
[1761612678543,0.001,4110.7,4110.6,2.43273488]
[1761612683053,0.001,4110.7,4109.8,2.4351831]
[1761612683054,0.464,4110.7,4109.8,0.002]
[1761612683354,0.464,4110.7,4108.4,2.43402218]
[1761612683355,2.43327051,4109.7,4108.4,2.43402218]
[1761612683651,2.43327051,4109.7,4107.7,2.43440977]
[1761612683652,2.43344527,4109.4,4107.4,0.98]
[1761612683853,4.67606064,4109.4,4108.2,2.43415516]
[1761612684019,4.45164527,4109.4,4107.9,2.434317]
[1761612684220,4.45164527,4109.4,4108.3,2.43407955]
[1761612684436,4.45164527,4109.4,4108.4,2.43401239]
[1761612685020,0.463,4109.4,4107.7,2.43439631]
[1761612685247,0.463,4109.4,4107.6,0.008]
[1761612685248,0.972,4109.7,4108.0,3.98946147]
[1761612685559,0.972,4109.7,4109.5,2.4333401]
[1761612685871,0.6862,4109.9,4109.6,0.1216]
[1761612686025,0.6862,4109.9,4109.7,2.43326638]
[1761612686220,0.463,4109.8,4109.6,0.1216]
[1761612686538,0.463,4109.8,4109.3,0.002]
[1761612686932,0.463,4109.8,4109.4,2.43344527]
[1761612687342,0.463,4109.8,4109.4,2.43344161]
[1761612687941,0.463,4109.8,4109.7,2.43326763]
[1761612688434,0.463,4109.8,4109.6,2.43331084]
[1761612688937,1.436,4110.3,4109.7,0.02433267]
[1761612689137,1.436,4110.3,4110.0,2.43304267]
[1761612689337,1.436,4110.3,4109.3,2.45981529]
[1761612689338,1.436,4110.3,4110.1,2.43301337]
[1761612689557,0.463,4110.6,4110.1,2.43297169]
[1761612689854,0.463,4110.6,4110.2,2.43295753]
[1761612690057,0.463,4110.6,4110.1,2.43301842]
[1761612690930,0.001,4110.7,4110.2,0.02432971]
[1761612691138,0.001,4110.7,4110.0,0.0243309]
[1761612691661,0.001,4110.7,4110.6,2.43273488]
[1761612691863,0.001,4110.7,4110.6,2.91928983]
[1761612692558,0.001,4110.7,4110.6,2.92728983]
[1761612693442,0.001,4110.7,4110.6,2.91928983]
[1761612694794,0.001,4111.2,4110.8,0.405504]
[1761612694974,0.001,4111.2,4111.1,17.34860681]
[1761612695356,0.001,4111.2,4111.1,17.35660681]
[1761612696342,0.001,4111.2,4111.1,17.47820681]
[1761612698956,0.001,4111.6,4111.5,4.39290635]
[1761612699117,0.001,4111.6,4111.5,5.36490635]
[1761612699401,2.43095286,4113.7,4111.5,5.36490635]
[1761612699402,0.001,4114.0,4113.4,2.43107891]
[1761612699698,0.001,4114.0,4113.4,4.95827891]
[1761612700197,0.001,4114.0,4113.4,18.50309285]
[1761612700385,0.001,4114.0,4113.4,18.51109285]
[1761612700715,0.001,4114.0,4113.4,20.60531833]
[1761612701125,0.001,4114.0,4113.9,2.43078344]
[1761612701403,0.001,4114.6,4114.5,2.43042897]
[1761612701609,0.001,4114.6,4114.5,16.94724291]
[1761612701914,0.001,4114.6,4114.5,16.95524291]
[1761612702120,0.001,4114.6,4114.5,18.07733832]
[1761612702406,0.001,4114.6,4114.5,19.04933832]
[1761612702572,0.001,4114.6,4114.5,20.60453832]
[1761612702974,0.001,4114.6,4114.5,19.04133832]
[1761612703204,0.001,4114.6,4114.5,4.52452438]
[1761612703409,0.4289,4114.6,4114.5,2.43042897]
[1761612703613,0.001,4114.6,4114.5,2.43042897]
[1761612704876,0.001,4114.6,4113.7,0.972]
[1761612704877,0.4289,4114.6,4113.7,0.972]
[1761612705113,0.4289,4114.6,4114.1,2.43065891]
[1761612705309,0.4289,4114.6,4114.0,2.4307109]
[1761612706213,0.4289,4114.6,4114.2,2.43059776]
[1761612706920,0.4289,4114.6,4114.0,2.43067689]
[1761612707232,0.4289,4114.6,4113.9,2.43076969]
[1761612707380,0.4289,4114.6,4113.9,2.43078171]
[1761612707582,0.4289,4114.6,4111.9,0.008]
[1761612707809,2.43065674,4114.2,4113.2,2.43119518]
[1761612708014,2.43065674,4114.2,4113.3,2.43110804]
[1761612708331,0.2192,4113.4,4113.3,2.43110804]
[1761612709409,0.2192,4113.4,4113.3,2.55270804]
[1761612709986,0.6471,4113.4,4113.3,2.55270804]
[1761612710214,0.6471,4113.4,4113.3,0.1216]
[1761612711634,3.07817891,4113.4,4113.3,0.1216]
[1761612711838,0.6471,4113.4,4113.3,0.1216]
[1761612712020,0.6481,4113.4,4113.3,0.1216]
[1761612712215,0.001,4113.4,4112.4,0.008]
[1761612712418,0.001,4113.4,4113.1,2.43120034]
[1761612712633,0.001,4113.4,4112.4,0.26152]
[1761612712831,0.001,4113.4,4112.4,0.008]
[1761612713024,0.001,4113.4,4113.3,2.43113801]
[1761612715522,0.4289,4113.4,4113.3,2.43113801]
[1761612715724,0.4289,4113.4,4113.1,2.43125353]
[1761612716929,0.001,4113.4,4113.3,2.43113801]
[1761612718417,0.001,4113.4,4113.3,2.91737346]
[1761612719635,0.001,4113.4,4113.3,2.94168484]
[1761612719837,0.001,4113.4,4113.3,2.91737346]
[1761612721533,0.4289,4113.4,4113.3,2.91737346]
[1761612721732,0.001,4113.4,4113.3,2.91737346]
[1761612722312,0.001,4113.4,4113.3,3.03897346]
[1761612722940,0.001,4113.4,4113.3,3.06328484]
[1761612723527,0.001,4113.4,4113.3,3.07128484]
[1761612724246,0.001,4113.4,4113.3,3.03897346]
[1761612725018,0.001,4113.4,4113.3,3.07128484]
[1761612725415,0.001,4113.4,4113.3,5.00767746]
[1761612726413,0.001,4113.4,4113.3,4.99967746]
[1761612726613,0.001,4113.4,4113.3,5.97967746]
[1761612729645,0.001,4113.9,4113.8,2.83634653]
[1761612729829,1e-08,4114.4,4114.3,4.33045111]
[1761612730149,0.65531377,4116.7,4114.3,4.33045111]
[1761612730150,0.6798,4116.3,4114.9,4.39089671]
[1761612730448,0.6798,4116.3,4114.9,4.41519863]
[1761612730652,0.6798,4116.3,4114.9,4.42319863]
[1761612730817,0.2264,4116.3,4116.2,2.42942519]
[1761612731021,0.4534,4116.8,4115.8,2.42964631]
[1761612731022,0.2264,4116.6,4116.5,2.42924814]
[1761612731654,0.6798,4116.6,4116.5,2.42924814]
[1761612732156,0.2264,4116.6,4116.5,2.42924814]
[1761612732353,0.4534,4116.9,4116.8,2.42907112]
[1761612733431,0.4534,4116.9,4116.8,3.16025109]
[1761612733762,0.2365,4117.1,4117.0,2.42895312]
[1761612735235,0.4534,4117.8,4117.7,2.4285402]
[1761612735455,0.4534,4117.8,4116.9,2.42901212]
[1761612735644,0.4534,4117.8,4117.5,2.42863572]
[1761612735847,0.4534,4117.8,4117.6,2.42858621]
[1761612737555,0.4534,4117.8,4117.0,1.7677006]
[1761612737756,0.4534,4117.8,4116.8,0.73117997]
[1761612738054,0.4534,4117.8,4117.5,2.42861896]
[1761612738257,0.4534,4117.8,4117.6,2.4285938]
[1761612738461,0.4534,4117.8,4117.4,2.42871127]
[1761612738462,0.2264,4118.0,4117.9,2.42842225]
[1761612738822,0.4534,4118.3,4117.7,2.42851292]
[1761612738823,0.4534,4118.3,4118.2,2.42824534]
[1761612739029,0.6798,4118.3,4118.2,2.42824534]
[1761612739355,0.2264,4118.3,4118.2,2.9381846]
[1761612739576,0.4534,4118.8,4118.3,2.42818638]
[1761612739725,0.4534,4118.6,4118.5,2.42801285]
[1761612739930,0.4534,4118.6,4118.2,0.48565681]
[1761612740144,0.4534,4118.6,4118.5,0.1216]
[1761612741266,0.4534,4118.6,4118.5,2.54966847]
[1761612744364,0.4534,4118.6,4118.5,0.1216]
[1761612745947,2.88142873,4118.6,4117.5,2.42861775]
[1761612746279,2.88142873,4118.6,4116.8,3.88]
[1761612746280,0.2264,4117.6,4117.4,2.42866907]
[1761612746483,0.2264,4117.6,4116.8,3.88]
[1761612746682,0.2264,4118.0,4116.9,0.41229012]
[1761612746977,0.2264,4118.0,4117.7,2.42851878]
[1761612747189,0.6798,4118.0,4117.7,2.42851878]
[1761612747472,0.6798,4118.0,4116.9,0.388]
[1761612747646,0.4534,4117.9,4117.5,2.42864775]
[1761612747849,0.4534,4117.9,4116.9,0.388]
[1761612748051,0.4534,4117.9,4117.8,2.42848122]
[1761612748245,0.4534,4117.9,4117.0,1.54880139]
[1761612748671,0.4534,4117.9,4117.7,2.42851287]
[1761612748945,0.4534,4117.9,4117.6,2.42858292]
[1761612749144,0.4534,4117.9,4117.0,1.54880139]
[1761612749349,0.4534,4117.9,4117.3,2.428735]
[1761612749546,2.88186165,4117.9,4116.9,3.40001212]
[1761612749758,0.4534,4117.9,4116.9,0.971]
[1761612749976,0.4534,4117.8,4117.4,2.42871639]
[1761612750179,0.4534,4117.8,4117.5,2.42865331]
[1761612750380,0.4534,4117.8,4117.5,0.48574817]
[1761612750686,0.4534,4117.8,4117.6,2.42859243]
[1761612751089,0.4534,4117.8,4116.8,1.5552]
[1761612751291,0.4534,4117.8,4117.7,2.4285402]
[1761612751982,0.4534,4117.8,4117.5,2.4286539]
[1761612752179,0.4534,4117.8,4117.0,2.42895312]
[1761612752382,0.4534,4117.8,4116.9,4.851]
[1761612752383,0.4534,4117.8,4117.7,2.4285402]
[1761612753386,0.4534,4117.8,4117.6,2.42858032]
[1761612754397,0.4534,4117.8,4117.5,2.42863732]
[1761612754594,0.4534,4117.8,4117.1,0.88351531]
[1761612754793,0.4534,4117.8,4117.2,0.57345153]
[1761612754969,0.4534,4117.8,4117.7,2.4285402]
[1761612755895,0.2264,4118.0,4117.9,2.42842225]
[1761612756871,0.2164,4118.3,4117.7,2.5501402]
[1761612757076,0.2164,4118.3,4118.2,2.42824534]
[1761612757275,0.2164,4118.3,4118.2,2.54984534]
[1761612757464,0.6495,4118.3,4118.2,2.54984534]
[1761612758478,0.6495,4118.3,4118.2,0.1216]
[1761612759117,3.07768638,4118.3,4118.2,0.1216]
[1761612760993,5.15558312,4118.3,4118.2,0.1216]
[1761612761394,2.42845294,4117.9,4117.2,2.42882556]
[1761612761717,2.42845294,4117.9,4117.0,3.88]
[1761612761718,1.4041,4118.2,4118.0,0.1216]
[1761612761917,0.4331,4118.1,4117.8,0.1216]
[1761612762627,0.2164,4118.3,4118.0,2.42836328]
[1761612762828,0.6495,4118.3,4118.0,2.42836328]
[1761612762985,0.6495,4118.3,4118.2,2.54984534]
[1761612763691,0.2164,4118.3,4118.2,2.54984534]
[1761612763886,0.2164,4118.3,4118.2,0.1216]
[1761612764092,0.6495,4118.3,4118.2,0.1216]
[1761612764400,0.6495,4118.3,4118.2,2.54984534]
[1761612764802,0.2164,4118.3,4118.2,2.54984534]
[1761612765001,0.6495,4118.3,4118.2,0.1216]
[1761612765327,0.6495,4118.3,4118.2,2.54984534]
[1761612765819,0.6505,4118.3,4118.2,2.54984534]
[1761612766955,0.6505,4118.3,4118.2,0.1216]
[1761612767666,0.6505,4118.3,4118.2,2.54984534]
[1761612768271,0.6505,4118.3,4118.2,0.1216]
[1761612768565,0.6505,4118.3,4118.2,2.54984534]
[1761612768735,0.2174,4118.3,4118.2,2.54984534]
[1761612769050,0.6505,4118.3,4118.2,0.1216]
[1761612771624,3.07868638,4118.3,4118.2,0.1216]
[1761612772137,0.2174,4118.3,4118.2,0.1216]
[1761612772752,0.001,4118.3,4118.2,2.80484545]
[1761612775678,0.001,4118.3,4118.2,2.8291279]
[1761612777697,0.001,4118.3,4118.2,2.8371279]
[1761612778293,0.001,4118.3,4118.2,2.81284545]
[1761612780175,0.001,4118.3,4118.2,2.8291279]
[1761612780488,0.001,4118.3,4118.2,4.7898319]
[1761612780688,0.001,4118.3,4118.2,8.64554945]
[1761612781302,0.001,4118.3,4118.2,8.65354945]
[1761612782906,0.001,4118.3,4118.2,8.64554945]
[1761612783901,0.001,4118.3,4118.2,6.56324545]
[1761612784584,0.001,4118.3,4118.2,4.64394945]
[1761612784785,0.001,4118.3,4118.2,4.6762319]
[1761612785108,0.001,4118.3,4118.2,4.65194945]
[1761612787986,0.001,4118.3,4118.2,4.64394945]
[1761612788811,0.001,4118.3,4118.2,2.68324545]
[1761612789109,0.001,4118.3,4118.2,2.42824534]
[1761612789110,0.4443,4118.3,4118.2,2.42824534]
[1761612790117,0.4443,4118.3,4118.1,2.42829048]
[1761612790319,0.4443,4118.3,4118.1,2.42824947]
[1761612790622,0.4443,4118.3,4118.2,2.42824534]
[1761612791835,0.4443,4118.3,4117.1,2.42887853]
[1761612791836,0.4443,4118.3,4116.9,6.30900875]
[1761612792132,0.4443,4118.3,4117.4,0.971]
[1761612792490,0.4443,4118.3,4118.1,2.42825428]
[1761612793729,0.4443,4118.3,4118.0,2.42832774]
[1761612793947,0.4443,4118.3,4118.2,0.1216]
[1761612794991,0.4443,4118.3,4118.2,2.54984534]
[1761612796017,0.001,4118.3,4118.2,3.04766509]
[1761612796222,0.0146,4118.3,4118.2,3.04766509]
[1761612796978,0.4579,4118.3,4118.2,2.54984534]
[1761612797937,0.4579,4118.3,4118.2,0.1216]
[1761612798325,0.4579,4118.3,4118.2,2.54984534]
[1761612799351,0.4579,4118.3,4118.2,0.1216]
[1761612804045,2.88608638,4118.3,4118.2,0.1216]
[1761612804669,4.44128638,4118.3,4118.2,0.1216]
[1761612805581,2.42850034,4117.8,4117.1,2.42887333]
[1761612805767,2.42850034,4117.8,4116.3,2.42934526]
[1761612805768,2.64685891,4117.2,4115.1,0.008]
[1761612805971,2.64685891,4117.2,4115.4,2.42989745]
[1761612805972,0.4433,4117.1,4115.4,2.42989745]
[1761612806277,0.4433,4117.1,4115.2,0.971]
[1761612806485,0.4433,4117.1,4117.0,0.1216]
[1761612821123,4.42739412,4117.1,4117.0,0.1216]
[1761612821420,2.42902828,4116.9,4116.7,0.1216]
[1761612821623,0.4462,4116.8,4116.7,0.1216]
[1761612822116,4.43047112,4116.8,4116.7,0.1216]
[1761612823042,2.42931285,4116.4,4115.7,2.42967545]
[1761612823321,2.42943113,4116.2,4115.2,6.3100141]
[1761612823725,0.4462,4116.1,4115.5,2.42983793]
[1761612823892,0.4462,4116.1,4115.2,3.88]
[1761612824086,0.1216,4116.8,4115.2,3.88]
[1761612824087,0.4462,4116.3,4116.0,0.1216]
[1761612824498,2.0014,4116.3,4116.0,0.1216]
[1761612824827,0.4462,4116.2,4116.0,0.1216]
[1761612832748,0.4462,4116.2,4115.4,2.42985122]
[1761612832749,2.42948422,4116.1,4115.4,2.42985122]
[1761612832947,2.42948422,4116.1,4115.8,0.1216]
[1761612833148,0.4462,4116.0,4115.8,0.1216]
[1761612833322,0.2272,4115.9,4115.8,0.1216]
[1761612833945,0.6734,4115.9,4115.8,0.1216]
[1761612841364,2.42972033,4115.7,4115.0,0.002]
[1761612841661,3.9852746,4115.1,4115.0,0.002]
[1761612841838,4.9562746,4115.1,4115.0,0.002]
[1761612842038,5.4024746,4115.1,4115.0,0.002]
[1761612842572,0.4462,4115.1,4115.0,0.002]
[1761612842872,0.971,4115.2,4115.0,0.002]
[1761612843167,0.4462,4115.8,4115.0,0.002]
[1761612843168,0.971,4115.6,4115.0,2.43212462]
[1761612843534,2.0014,4115.5,4115.0,0.002]
[1761612843733,2.0014,4115.5,4115.0,2.43212441]
[1761612844032,0.4462,4115.4,4115.1,2.43006268]
[1761612844669,0.4462,4115.4,4115.1,2.43007101]
[1761612845665,0.4462,4115.4,4115.0,2.43210116]
[1761612846274,0.4462,4115.4,4115.0,0.002]
[1761612849834,0.4472,4115.4,4115.0,0.002]
[1761612851369,0.4472,4115.4,4115.3,0.1216]
[1761612851580,4.43229745,4115.4,4115.3,0.1216]
[1761612851736,4.43229745,4115.4,4115.0,0.002]
[1761612851737,2.4300746,4115.1,4115.0,0.002]
[1761612852065,2.43019271,4114.9,4114.8,0.1216]
[1761612852368,4.45694887,4115.0,4114.8,0.1216]
[1761612852573,0.4716,4114.9,4114.8,0.1216]
[1761612852772,4.45699271,4114.9,4114.8,0.1216]
[1761612854257,2.0268,4114.9,4114.8,0.1216]
[1761612854862,4.45699271,4114.9,4114.8,0.1216]
[1761612856359,4.45699271,4114.9,4114.5,0.002]
[1761612856360,2.4303699,4114.6,4114.5,0.002]
[1761612856735,4.4571699,4114.6,4114.5,0.1236]
[1761612857249,4.4571699,4114.6,4114.5,0.002]
[1761612858278,2.43049049,4114.4,4114.1,0.112]
[1761612858640,0.4716,4114.3,4114.1,0.112]
[1761612860078,1.6768,4114.7,4114.1,0.112]
[1761612860247,0.972,4114.6,4113.8,2.43084253]
[1761612860454,2.5272,4114.6,4114.0,2.43069149]
[1761612860772,2.5272,4114.6,4114.5,0.1216]
[1761612860940,3.4023699,4114.6,4114.5,0.1216]
[1761612861342,3.8739699,4114.6,4114.5,0.1216]
[1761612861685,5.4291699,4114.6,4114.5,0.1216]
[1761612862242,9.67978392,4114.6,4114.5,0.1216]
[1761612862471,2.43059213,4114.3,4114.1,0.1216]
[1761612862683,2.43060619,4114.2,4114.1,0.1216]
[1761612863037,2.90220619,4114.2,4114.1,0.1216]
[1761612863652,0.4716,4114.2,4114.1,0.1216]
[1761612865657,2.4304813,4114.5,4114.1,0.1216]
[1761612865861,0.4716,4114.4,4114.1,0.1216]
[1761612866172,2.4304813,4114.5,4114.1,0.1216]
[1761612866570,2.9020813,4114.5,4114.1,0.1216]
[1761612866784,0.1216,4114.7,4114.1,0.1216]
[1761612867081,0.28596022,4116.1,4113.6,4.25061402]
[1761612867082,0.972,4115.1,4114.4,0.1216]
[1761612867248,0.972,4115.1,4114.2,4.28492008]
[1761612867249,0.972,4115.1,4115.0,0.1216]
[1761612871484,0.001,4115.4,4115.1,2.43004614]
[1761612871680,0.001,4115.4,4115.3,0.1216]
[1761612872866,0.4726,4115.4,4115.3,0.1216]
[1761612873085,2.90249745,4115.4,4115.3,0.1216]
[1761612873388,0.4726,4115.4,4115.3,0.1216]
[1761612876397,0.001,4115.4,4115.3,0.1216]
[1761612881617,0.001,4115.4,4115.3,2.5515565]
[1761612888743,0.4487,4115.4,4115.3,0.1216]
[1761612893336,2.87859745,4115.4,4115.3,0.1216]
[1761612893628,0.4487,4115.4,4115.3,0.1216]
[1761612894555,0.001,4115.4,4115.3,0.1216]
[1761612900872,0.001,4115.4,4115.3,2.5615565]
[1761612901169,0.001,4115.4,4115.3,3.08501206]
[1761612901967,0.001,4115.4,4115.3,0.620756]
[1761612902153,0.001,4115.4,4115.3,0.1216]
[1761612902364,0.4487,4115.4,4115.3,0.1216]
[1761612903673,0.001,4115.4,4115.3,0.1216]
[1761612905357,0.4424,4115.4,4115.3,0.1216]
[1761612905549,0.001,4115.4,4115.3,0.1216]
[1761612907164,0.001,4115.4,4115.3,8.03986608]
[1761612907399,0.001,4115.4,4115.3,7.66329439]
[1761612908169,0.001,4115.4,4115.3,2.5615565]
[1761612913311,0.001,4115.4,4115.3,2.46425606]
[1761612913479,0.001,4115.4,4115.3,2.5615565]
[1761612913676,0.001,4115.4,4115.3,3.57089167]
[1761612914683,0.001,4115.4,4115.3,3.56089167]
[1761612916102,0.001,4115.4,4115.3,3.57089167]
[1761612916297,0.001,4115.4,4115.3,3.56089167]
[1761612916723,0.001,4115.4,4115.3,3.57089167]
[1761612918994,0.001,4115.4,4115.3,7.47519123]
[1761612919197,0.001,4115.4,4115.3,7.45089167]
[1761612920201,0.001,4115.4,4115.3,7.73479567]
[1761612920586,0.001,4115.4,4115.3,7.83199782]
[1761612921207,0.001,4115.4,4115.3,12.83653356]
[1761612923703,0.001,4115.4,4115.3,12.43102956]
[1761612923900,0.001,4115.4,4115.3,6.3099565]
[1761612924101,0.4662,4115.4,4114.5,2.43042897]
[1761612924305,0.4662,4115.4,4114.2,2.43055833]
[1761612924814,0.4662,4115.4,4114.8,2.43023286]
[1761612924991,0.4662,4115.4,4114.9,2.43016202]
[1761612925191,0.4662,4115.4,4114.1,0.002]
[1761612925392,2.42996052,4115.3,4114.6,2.43035113]
[1761612925896,0.2323,4114.7,4114.5,2.43042132]
[1761612926286,0.4652,4114.6,4114.5,2.43042132]